fUSD/lending_fUSD_20250107
["ID","MTS","AMOUNT","RATE_DAILY","PERIOD"]
[348072253,1736292675032,-607.67,0.00011818,2]
[348072254,1736292675042,-500.0,0.00011818,2]
[348072255,1736292675052,-500.0,0.00011818,2]
[348072256,1736292675062,-500.0,0.00011818,2]
[348072257,1736292675076,-150.0,0.00011827,2]
[348072258,1736292675086,-150.0,0.00011833,2]
[348072259,1736292675095,-2770.11146367,0.0001185,2]
[348072260,1736292675104,-150.0,0.00011872,2]
[348072261,1736292675114,-833.80715673,0.00011877,2]
[348072262,1736292675129,-1383.78168941,0.00011877,2]
[348072263,1736292675141,-134.30115386,0.00011877,2]
[348072264,1736292675151,-1267.64,0.00011877,2]
[348072265,1736292675161,-861.33,0.00011877,2]
[348072266,1736292675171,-915.28,0.00011877,2]
[348072267,1736292675183,-500.0,0.00011877,2]
[348072268,1736292675193,-1100.64,0.00011877,2]
[348072269,1736292675203,-673.78,0.00011877,2]
[348072270,1736292675215,-754.88,0.00011877,2]
[348072271,1736292675224,-802.12,0.00011877,2]
[348072272,1736292675234,-783.0874604,0.00011877,2]
[348072273,1736292675247,-321.1425396,0.00011877,2]
[348072274,1736292675257,-645.75241167,0.00011877,2]
[348072275,1736292675269,-801.81421915,0.00011877,2]
[348072276,1736292675280,-95.26336918,0.00011877,2]
[348072277,1736292675291,-1062.20116082,0.00011877,2]
[348072278,1736292675302,-809.62,0.00011877,2]
[348072279,1736292675314,-724.16883918,0.00011877,2]
[348072280,1736292675324,-1254.9996053,0.00011877,2]
[348072281,1736292675340,-292.9003947,0.00011877,2]
[348072282,1736292675351,-150.0,0.00011877,2]
[348072283,1736292675361,-667.95397468,0.00011879,2]
[348072284,1736292675371,-361.39496499,0.00011879,2]
[348072285,1736292675380,-3384.00066563,0.0001188,2]
[348072286,1736292675890,-306.0,9.276e-05,2]
[348072287,1736292675910,-1743.64,9.276e-05,2]
[348072288,1736292675920,-500.0,9.352e-05,2]
[348072289,1736292675930,-500.0,9.453e-05,2]
[348072290,1736292675940,-2049.64,9.55e-05,2]
[348072291,1736292675951,-2049.64,9.824e-05,2]
[348072292,1736292675960,-2049.64,0.00010098,2]
[348072293,1736292675969,-961.45968529,0.00010372,2]
[348072294,1736292675981,-1088.18031471,0.00010372,2]
[348072295,1736292675990,-2049.64,0.00010646,2]
[348072296,1736292676001,-2049.64,0.0001092,2]
[348072297,1736292676011,-2049.64,0.00011194,2]
[348072298,1736292676020,-50922.09968532,0.0001188,2]
[348072299,1736292676035,-17304.66396124,0.0001188,2]
[348072300,1736292676046,-5618.71172442,0.0001188,2]
[348072301,1736292676082,-9742.7896,0.0001188,2]
[348072302,1736292676093,-14400.09966817,0.0001188,2]
[348072303,1736292676103,-10905.34375944,0.0001188,2]
[348072304,1736292676112,-5800.0,0.00011898,2]
[348072305,1736292676123,-137725.19320419,0.000119,2]
[348072306,1736292676527,-500.0,9.276e-05,2]
[348072307,1736292676537,-119.02,0.00011468,2]
[348072308,1736292676548,-1257.18660747,0.00011468,2]
[348072309,1736292676559,-673.43339253,0.00011468,2]
[348072310,1736292676569,-2049.64,0.00011742,2]
[348072311,1736292676578,-27224.42819228,0.000119,2]
[348072312,1736292676588,-7514.96750327,0.000119,2]
[348072313,1736292676597,-5000.0,0.000119,2]
[348072314,1736292676606,-35131.33796707,0.000119,2]
[348072315,1736292676617,-107719.87382648,0.000119,2]
[348072316,1736292676627,-6680.06838691,0.000119,2]
[348072317,1736292676637,-5800.0,0.00011906,2]
[348072318,1736292676647,-150.0,0.00011911,2]
[348072319,1736292676656,-5800.0,0.00011915,2]
[348072320,1736292676665,-500.0,0.00011918,2]
[348072321,1736292676674,-624.20300797,0.00011918,2]
[348072322,1736292676686,-500.0,0.00011918,2]
[348072323,1736292676695,-500.0,0.00011918,2]
[348072324,1736292676705,-500.0,0.00011918,2]
[348072325,1736292676714,-500.0,0.00011918,2]
[348072326,1736292676724,-500.0,0.00011918,2]
[348072327,1736292676734,-500.0,0.00011918,2]
[348072328,1736292676743,-500.0,0.00011918,2]
[348072329,1736292676752,-500.0,0.00011918,2]
[348072330,1736292676762,-500.0,0.00011918,2]
[348072331,1736292676771,-311.87,0.00011918,2]
[348072332,1736292676781,-500.0,0.00011918,2]
[348072333,1736292676791,-500.0,0.00011918,2]
[348072334,1736292676800,-634.89,0.00011918,2]
[348072335,1736292676810,-500.0,0.00011918,2]
[348072336,1736292676820,-500.0,0.00011918,2]
[348072337,1736292676830,-500.0,0.00011918,2]
[348072338,1736292676839,-500.0,0.00011918,2]
[348072339,1736292676848,-500.0,0.00011918,2]
[348072340,1736292676858,-500.0,0.00011918,2]
[348072341,1736292676867,-500.0,0.00011918,2]
[348072342,1736292676876,-500.0,0.00011918,2]
[348072343,1736292676886,-500.0,0.00011918,2]
[348072344,1736292676895,-500.0,0.00011918,2]
[348072345,1736292676904,-500.0,0.00011918,2]
[348072346,1736292676914,-500.0,0.00011918,2]
[348072347,1736292676923,-500.0,0.00011918,2]
[348072348,1736292676933,-268.07362903,0.00011918,2]
[348072349,1736292676942,-500.0,0.00011918,2]
[348072350,1736292676951,-500.0,0.00011918,2]
[348072351,1736292676961,-500.0,0.00011918,2]
[348072352,1736292676971,-500.0,0.00011918,2]
[348072353,1736292676980,-500.0,0.00011919,2]
[348072354,1736292676989,-500.0,0.00011919,2]
[348072355,1736292676997,-500.0,0.00011919,2]
[348072356,1736292677007,-560.18,0.00011919,2]
[348072357,1736292677016,-500.0,0.00011919,2]
[348072358,1736292677026,-532.9,0.00011919,2]
[348072359,1736292677037,-500.0,0.00011919,2]
[348072360,1736292677047,-838.97,0.00011919,2]
[348072361,1736292677057,-500.0,0.00011919,2]
[348072362,1736292677067,-500.0,0.00011919,2]
[348072363,1736292677079,-500.0,0.00011919,2]
[348072364,1736292677089,-500.0,0.00011919,2]
[348072365,1736292677098,-500.0,0.00011919,2]
[348072366,1736292677107,-500.0,0.00011919,2]
[348072367,1736292677116,-500.0,0.00011919,2]
[348072368,1736292677126,-500.0,0.00011919,2]
[348072369,1736292677135,-561.68,0.00011919,2]
[348072370,1736292677144,-414.58770296,0.00011919,2]
[348072371,1736292677154,-500.0,0.00011919,2]
[348072372,1736292677164,-616.98,0.00011919,2]
[348072373,1736292677173,-348.34054049,0.00011919,2]
[348072374,1736292677182,-500.0,0.00011919,2]
[348072375,1736292677191,-500.0,0.00011919,2]
[348072376,1736292677201,-500.0,0.00011919,2]
[348072377,1736292677210,-650.26,0.00011919,2]
[348072378,1736292677219,-1115.0,0.00011919,2]
[348072379,1736292677229,-500.0,0.00011919,2]
[348072380,1736292677238,-500.0,0.00011919,2]
[348072381,1736292677247,-610.41528265,0.00011919,2]
[348072382,1736292677257,-500.0,0.00011919,2]
[348072383,1736292677266,-1082.07,0.00011919,2]
[348072384,1736292677275,-649.16,0.00011919,2]
[348072385,1736292677284,-987.88,0.00011919,2]
[348072386,1736292677294,-672.76,0.00011919,2]
[348072387,1736292677303,-500.0,0.00011919,2]
[348072388,1736292677312,-500.0,0.00011919,2]
[348072389,1736292677321,-299.87124557,0.00011919,2]
[348072390,1736292677331,-500.0,0.00011919,2]
[348072391,1736292677340,-500.0,0.00011919,2]
[348072392,1736292677350,-500.0,0.00011919,2]
[348072393,1736292677359,-620.94,0.00011919,2]
[348072394,1736292677368,-500.0,0.00011919,2]
[348072395,1736292677378,-394.43471255,0.00011919,2]
[348072396,1736292677387,-500.0,0.00011919,2]
[348072397,1736292677397,-691.37,0.00011919,2]
[348072398,1736292677407,-500.0,0.00011919,2]
[348072399,1736292677416,-915.97,0.00011919,2]
[348072400,1736292677426,-548.18,0.00011919,2]
[348072401,1736292677436,-500.0,0.00011919,2]
[348072402,1736292677446,-748.05,0.00011919,2]
[348072403,1736292677455,-500.0,0.00011919,2]
[348072404,1736292677465,-498.97450345,0.00011919,2]
[348072405,1736292677474,-500.0,0.00011919,2]
[348072406,1736292677483,-500.0,0.00011919,2]
[348072407,1736292677493,-785.16,0.00011919,2]
[348072408,1736292677503,-523.95,0.00011919,2]
[348072409,1736292677512,-856.44,0.0001192,2]
[348072410,1736292677521,-981.16,0.0001192,2]
[348072411,1736292677531,-1160.94,0.0001192,2]
[348072412,1736292677541,-818.18,0.0001192,2]
[348072413,1736292677550,-1925.98,0.0001192,2]
[348072414,1736292677559,-1346.43,0.0001192,2]
[348072415,1736292677569,-3191.57,0.0001192,2]
[348072416,1736292677578,-2217.3,0.0001192,2]
[348072417,1736292677588,-500.0,0.0001192,2]
[348072418,1736292677597,-1106.25,0.0001192,2]
[348072419,1736292677606,-3006.56,0.0001192,2]
[348072420,1736292677615,-500.0,0.0001192,2]
[348072421,1736292677624,-744.34,0.0001192,2]
[348072422,1736292677633,-1231.32,0.0001192,2]
[348072423,1736292677643,-1259.96,0.0001192,2]
[348072424,1736292677653,-1978.38,0.0001192,2]
[348072425,1736292677662,-1056.07,0.0001192,2]
[348072426,1736292677672,-3128.95,0.0001192,2]
[348072427,1736292677682,-1437.13,0.0001192,2]
[348072428,1736292677692,-2298.99,0.0001192,2]
[348072429,1736292677701,-1358.28,0.0001192,2]
[348072430,1736292677710,-1418.78,0.0001192,2]
[348072431,1736292677720,-5800.0,0.00011923,2]
[348072432,1736292677730,-5800.0,0.00011932,2]
[348072433,1736292677875,-6680.06838687,0.00011933,2]
[348072434,1736292677885,-5800.0,0.0001194,2]
[348072435,1736292677895,-2844.3272021,0.00011947,9]
[348072436,1736292677904,-5800.0,0.00011949,2]
[348072437,1736292677913,-150.0,0.0001195,2]
[348072438,1736292677923,-150.0,0.00011952,2]
[348072439,1736292677933,-50948.55999245,0.00011957,2]
[348072440,1736292677943,-1284.6049665,0.00011957,2]
[348072441,1736292678044,-9619.0,0.00010153,2]
[348072442,1736292678054,-4515.3950335,0.00011957,2]
[348072443,1736292678064,-40563.67327985,0.00011961,2]
[348072444,1736292678077,-6790.23518807,0.00011961,2]
[348072445,1736292678089,-2746.73849264,0.00011961,2]
[348072446,1736292678100,-9580.0,0.00011961,2]
[348072447,1736292678111,-378.8694,0.00011961,2]
[348072448,1736292678122,-2400.15963182,0.00011961,2]
[348072449,1736292678133,-800.0,0.00011961,2]
[348072450,1736292678145,-455.38002,0.00011961,2]
[348072451,1736292793397,500.0,0.00022469,120]
[348072452,1736292795862,2000.0,0.00022469,120]
[348072453,1736292833444,200.0,0.00022469,120]
[348072454,1736292903124,270.11349881,0.00023014,120]
[348072456,1736293392689,2000.0,0.00022208,120]
[348072478,1736293832038,-521.20893333,8.219e-05,2]
[348072479,1736293832050,-953.56106667,8.219e-05,2]
[348072480,1736293832059,-3018.0,8.47e-05,2]
[348072481,1736293832068,-153.0,8.475e-05,2]
[348072482,1736293832077,-1000.0,8.475e-05,2]
[348072483,1736293832086,-178.55,8.507e-05,2]
[348072484,1736293832094,-250.0,8.61e-05,2]
[348072485,1736293832103,-150.0,8.712e-05,2]
[348072486,1736293832112,-250.0,8.743e-05,2]
[348072487,1736293832121,-5512.0,8.805e-05,2]
[348072488,1736293832130,-167.43,9.059e-05,2]
[348072489,1736293832139,-545.33,9.18e-05,2]
[348072490,1736293832147,-1358.3,9.18e-05,2]
[348072491,1736293832156,-150.0,9.251e-05,2]
[348072492,1736293832165,-1210.7534,9.252e-05,2]
[348072493,1736293832174,-1739.903,9.252e-05,2]
[348072494,1736293832183,-162.89,9.256e-05,2]
[348072495,1736293832191,-1049.77,9.275e-05,2]
[348072496,1736293832201,-500.0,9.275e-05,2]
[348072497,1736293832209,-753.89,9.275e-05,2]
[348072498,1736293832219,-769.84,9.275e-05,2]
[348072499,1736293832227,-181.140653,9.275e-05,2]
[348072500,1736293832239,-1060.009347,9.275e-05,2]
[348072501,1736293832248,-670.07,9.275e-05,2]
[348072502,1736293832257,-1908.97,9.275e-05,2]
[348072503,1736293832266,-500.0,9.275e-05,2]
[348072504,1736293832275,-1052.81,9.275e-05,2]
[348072505,1736293832284,-1860.77,9.275e-05,2]
[348072506,1736293832293,-936.69,9.275e-05,2]
[348072507,1736293832302,-500.0,9.275e-05,2]
[348072508,1736293832311,-500.0,9.275e-05,2]
[348072509,1736293832319,-2152.19,9.275e-05,2]
[348072510,1736293832328,-1369.51,9.275e-05,2]
[348072511,1736293832337,-500.0,9.275e-05,2]
[348072512,1736293832347,-500.0,9.275e-05,2]
[348072513,1736293832356,-500.0,9.275e-05,2]
[348072515,1736293832365,-829.55,9.275e-05,2]
[348072516,1736293832373,-789.34,9.275e-05,2]
[348072517,1736293832382,-813.16,9.275e-05,2]
[348072518,1736293832393,-500.0,9.275e-05,2]
[348072519,1736293832403,-500.0,9.275e-05,2]
[348072520,1736293832412,-500.0,9.275e-05,2]
[348072521,1736293832422,-500.0,9.275e-05,2]
[348072522,1736293832431,-687.51,9.275e-05,2]
[348072523,1736293832443,-500.0,9.276e-05,2]
[348072524,1736293832454,-500.0,9.276e-05,2]
[348072525,1736293832463,-500.0,9.276e-05,2]
[348072526,1736293832473,-619.65,9.276e-05,2]
[348072527,1736293832483,-500.0,9.276e-05,2]
[348072528,1736293832491,-500.0,9.276e-05,2]
[348072529,1736293832500,-500.0,9.276e-05,2]
[348072530,1736293832509,-500.0,9.276e-05,2]
[348072531,1736293832518,-500.0,9.276e-05,2]
[348072532,1736293832526,-500.0,9.276e-05,2]
[348072533,1736293832536,-500.0,9.276e-05,2]
[348072534,1736293832545,-500.0,9.276e-05,2]
[348072535,1736293832554,-252.347479,9.276e-05,2]
[348072536,1736293832565,-247.652521,9.276e-05,2]
[348072537,1736293832574,-500.0,9.276e-05,2]
[348072538,1736293832583,-642.04,9.276e-05,2]
[348072539,1736293832592,-304.41582103,9.276e-05,2]
[348072540,1736293832601,-500.0,9.276e-05,2]
[348072541,1736293832610,-500.0,9.276e-05,2]
[348072542,1736293832619,-500.0,9.276e-05,2]
[348072543,1736293832628,-500.0,9.276e-05,2]
[348072544,1736293832637,-500.0,9.276e-05,2]
[348072545,1736293832646,-500.0,9.276e-05,2]
[348072546,1736293832655,-500.0,9.276e-05,2]
[348072547,1736293832663,-500.0,9.276e-05,2]
[348072548,1736293832672,-500.0,9.276e-05,2]
[348072549,1736293832681,-500.0,9.276e-05,2]
[348072550,1736293832690,-500.0,9.276e-05,2]
[348072551,1736293832698,-500.0,9.276e-05,2]
[348072552,1736293832707,-500.0,9.276e-05,2]
[348072553,1736293832716,-500.0,9.276e-05,2]
[348072554,1736293832724,-500.0,9.276e-05,2]
[348072555,1736293832733,-59.19005387,9.276e-05,2]
[348072556,1736293832748,-440.80994613,9.276e-05,2]
[348072557,1736293832757,-500.0,9.276e-05,2]
[348072558,1736293832766,-134.62005387,9.276e-05,2]
[348072559,1736293832810,-365.37994613,9.276e-05,2]
[348072560,1736293832819,-62.83101519,9.276e-05,2]
[348072561,1736293832831,-437.16898481,9.276e-05,2]
[348072562,1736293832841,-8.88941608,9.276e-05,2]
[348072563,1736293832866,-491.11058392,9.276e-05,2]
[348072564,1736293832875,-500.0,9.276e-05,2]
[348072565,1736293832883,-500.0,9.276e-05,2]
[348072566,1736293832893,-500.0,9.276e-05,2]
[348072567,1736293832902,-500.0,9.276e-05,2]
[348072568,1736293832912,-500.0,9.276e-05,2]
[348072569,1736293832920,-500.0,9.276e-05,2]
[348072570,1736293832930,-500.0,9.276e-05,2]
[348072571,1736293832939,-500.0,9.276e-05,2]
[348072572,1736293832948,-500.0,9.276e-05,2]
[348072573,1736293832957,-500.0,9.276e-05,2]
[348072574,1736293832966,-500.0,9.276e-05,2]
[348072575,1736293832975,-500.0,9.276e-05,2]
[348072576,1736293832983,-500.0,9.276e-05,2]
[348072577,1736293832992,-500.0,9.276e-05,2]
[348072578,1736293833001,-500.0,9.276e-05,2]
[348072579,1736293833011,-500.0,9.276e-05,2]
[348072580,1736293833020,-537.7,9.276e-05,2]
[348072581,1736293833029,-500.0,9.276e-05,2]
[348072582,1736293833038,-534.44,9.276e-05,2]
[348072583,1736293833047,-500.0,9.276e-05,2]
[348072584,1736293833056,-500.0,9.276e-05,2]
[348072585,1736293833066,-500.0,9.276e-05,2]
[348072586,1736293833075,-500.0,9.276e-05,2]
[348072587,1736293833085,-500.0,9.276e-05,2]
[348072588,1736293833094,-500.0,9.276e-05,2]
[348072589,1736293833104,-500.0,9.276e-05,2]
[348072590,1736293833113,-500.0,9.276e-05,2]
[348072591,1736293833123,-500.0,9.276e-05,2]
[348072592,1736293833132,-500.0,9.276e-05,2]
[348072593,1736293833141,-500.0,9.276e-05,2]
[348072594,1736293833152,-500.0,9.276e-05,2]
[348072595,1736293833161,-644.13,9.276e-05,2]
[348072596,1736293833171,-500.0,9.276e-05,2]
[348072597,1736293833181,-500.0,9.276e-05,2]
[348072598,1736293833191,-500.0,9.276e-05,2]
[348072599,1736293833200,-500.0,9.276e-05,2]
[348072600,1736293833211,-500.0,9.276e-05,2]
[348072601,1736293833220,-500.0,9.276e-05,2]
[348072602,1736293833230,-500.0,9.276e-05,2]
[348072603,1736293833239,-500.0,9.276e-05,2]
[348072604,1736293833250,-500.0,9.276e-05,2]
[348072605,1736293833260,-899.98,9.276e-05,2]
[348072606,1736293833269,-500.0,9.276e-05,2]
[348072607,1736293833279,-500.0,9.276e-05,2]
[348072608,1736293833288,-500.0,9.276e-05,2]
[348072609,1736293833297,-500.0,9.276e-05,2]
[348072610,1736293833306,-500.0,9.276e-05,2]
[348072611,1736293833315,-500.0,9.276e-05,2]
[348072612,1736293833324,-500.0,9.276e-05,2]
[348072613,1736293833334,-648.46,9.276e-05,2]
[348072614,1736293833343,-500.0,9.276e-05,2]
[348072615,1736293833353,-500.0,9.276e-05,2]
[348072616,1736293833362,-500.0,9.276e-05,2]
[348072617,1736293833371,-500.0,9.276e-05,2]
[348072618,1736293833380,-500.0,9.276e-05,2]
[348072619,1736293833390,-500.0,9.276e-05,2]
[348072620,1736293833404,-500.0,9.276e-05,2]
[348072621,1736293833413,-500.0,9.276e-05,2]
[348072622,1736293833422,-838.45,9.276e-05,2]
[348072623,1736293833431,-646.59,9.276e-05,2]
[348072624,1736293833443,-500.0,9.276e-05,2]
[348072625,1736293833453,-609.48,9.276e-05,2]
[348072626,1736293833462,-500.0,9.276e-05,2]
[348072627,1736293833473,-500.0,9.276e-05,2]
[348072628,1736293833482,-500.0,9.276e-05,2]
[348072629,1736293833491,-500.0,9.276e-05,2]
[348072630,1736293833501,-500.0,9.276e-05,2]
[348072631,1736293833510,-500.0,9.276e-05,2]
[348072632,1736293833519,-414.25,9.276e-05,2]
[348072633,1736293833528,-627.29,9.276e-05,2]
[348072634,1736293833537,-500.0,9.276e-05,2]
[348072635,1736293833546,-500.0,9.276e-05,2]
[348072636,1736293833555,-500.0,9.276e-05,2]
[348072637,1736293833565,-500.0,9.276e-05,2]
[348072638,1736293833574,-1514.33,9.276e-05,2]
[348072639,1736293833584,-515.09,9.276e-05,2]
[348072640,1736293833593,-500.0,9.276e-05,2]
[348072641,1736293833603,-608.38,9.276e-05,2]
[348072642,1736293833612,-500.0,9.276e-05,2]
[348072643,1736293833621,-500.0,9.276e-05,2]
[348072644,1736293833630,-500.0,9.276e-05,2]
[348072645,1736293833640,-500.0,9.276e-05,2]
[348072646,1736293833649,-500.0,9.276e-05,2]
[348072647,1736293833658,-500.0,9.276e-05,2]
[348072648,1736293833667,-500.0,9.276e-05,2]
[348072649,1736293833677,-500.0,9.276e-05,2]
[348072650,1736293833686,-500.0,9.276e-05,2]
[348072651,1736293833695,-597.4,9.276e-05,2]
[348072652,1736293833704,-3662.18,9.276e-05,2]
[348072653,1736293833713,-500.0,9.276e-05,2]
[348072654,1736293833722,-500.0,9.276e-05,2]
[348072655,1736293833731,-500.0,9.276e-05,2]
[348072656,1736293833739,-500.0,9.276e-05,2]
[348072657,1736293833748,-500.0,9.276e-05,2]
[348072658,1736293833757,-500.0,9.276e-05,2]
[348072659,1736293833766,-500.0,9.276e-05,2]
[348072660,1736293833774,-500.0,9.276e-05,2]
[348072661,1736293833783,-500.0,9.276e-05,2]
[348072662,1736293833792,-500.0,9.276e-05,2]
[348072663,1736293833801,-500.0,9.276e-05,2]
[348072664,1736293833810,-500.0,9.276e-05,2]
[348072665,1736293833819,-500.0,9.276e-05,2]
[348072666,1736293833828,-500.0,9.276e-05,2]
[348072667,1736293833838,-500.0,9.276e-05,2]
[348072668,1736293833848,-441.20845842,9.276e-05,2]
[348072669,1736293833857,-500.0,9.276e-05,2]
[348072670,1736293833867,-500.0,9.276e-05,2]
[348072671,1736293833876,-500.0,9.276e-05,2]
[348072672,1736293833885,-500.0,9.276e-05,2]
[348072673,1736293833894,-500.0,9.276e-05,2]
[348072674,1736293833904,-500.0,9.276e-05,2]
[348072675,1736293833913,-500.0,9.276e-05,2]
[348072676,1736293833923,-500.0,9.276e-05,2]
[348072677,1736293833932,-500.0,9.276e-05,2]
[348072678,1736293833941,-500.0,9.276e-05,2]
[348072679,1736293833950,-500.0,9.276e-05,2]
[348072680,1736293833959,-500.0,9.276e-05,2]
[348072681,1736293833968,-500.0,9.276e-05,2]
[348072682,1736293833977,-500.0,9.276e-05,2]
[348072683,1736293833987,-500.0,9.276e-05,2]
[348072684,1736293833997,-500.0,9.276e-05,2]
[348072685,1736293834006,-500.0,9.276e-05,2]
[348072686,1736293834016,-500.0,9.276e-05,2]
[348072687,1736293834025,-500.0,9.276e-05,2]
[348072688,1736293834035,-500.0,9.276e-05,2]
[348072689,1736293834044,-500.0,9.276e-05,2]
[348072690,1736293834053,-500.0,9.276e-05,2]
[348072691,1736293834063,-500.0,9.276e-05,2]
[348072692,1736293834073,-500.0,9.276e-05,2]
[348072693,1736293834083,-500.0,9.276e-05,2]
[348072694,1736293834092,-500.0,9.276e-05,2]
[348072695,1736293834102,-500.0,9.276e-05,2]
[348072696,1736293834111,-500.0,9.276e-05,2]
[348072697,1736293834121,-500.0,9.276e-05,2]
[348072698,1736293834130,-500.0,9.276e-05,2]
[348072699,1736293834140,-500.0,9.276e-05,2]
[348072700,1736293834149,-500.0,9.276e-05,2]
[348072701,1736293834159,-500.0,9.276e-05,2]
[348072702,1736293834169,-500.0,9.276e-05,2]
[348072703,1736293834178,-500.0,9.276e-05,2]
[348072704,1736293834188,-724.25,9.276e-05,2]
[348072705,1736293834198,-610.86,9.276e-05,2]
[348072706,1736293834207,-500.0,9.276e-05,2]
[348072707,1736293834217,-500.0,9.276e-05,2]
[348072708,1736293834227,-500.0,9.276e-05,2]
[348072709,1736293834237,-671.25,9.276e-05,2]
[348072710,1736293834246,-500.0,9.276e-05,2]
[348072711,1736293834256,-500.0,9.276e-05,2]
[348072712,1736293834266,-500.0,9.276e-05,2]
[348072713,1736293834276,-500.0,9.276e-05,2]
[348072714,1736293834286,-500.0,9.276e-05,2]
[348072715,1736293834295,-735.0,9.276e-05,2]
[348072716,1736293834305,-618.08,9.276e-05,2]
[348072717,1736293834314,-500.0,9.276e-05,2]
[348072718,1736293834323,-500.0,9.276e-05,2]
[348072719,1736293834333,-500.0,9.276e-05,2]
[348072720,1736293834343,-500.0,9.276e-05,2]
[348072721,1736293834353,-500.0,9.276e-05,2]
[348072722,1736293834362,-500.0,9.276e-05,2]
[348072723,1736293834372,-500.0,9.276e-05,2]
[348072724,1736293834382,-500.0,9.276e-05,2]
[348072725,1736293834394,-500.0,9.276e-05,2]
[348072726,1736293834405,-500.0,9.276e-05,2]
[348072727,1736293834415,-500.0,9.276e-05,2]
[348072728,1736293834425,-500.0,9.276e-05,2]
[348072729,1736293834436,-500.0,9.276e-05,2]
[348072730,1736293834445,-500.0,9.276e-05,2]
[348072731,1736293834455,-500.0,9.276e-05,2]
[348072732,1736293834465,-500.0,9.276e-05,2]
[348072733,1736293834476,-500.0,9.276e-05,2]
[348072734,1736293834487,-500.0,9.276e-05,2]
[348072735,1736293834497,-500.0,9.276e-05,2]
[348072736,1736293834507,-690.58,9.276e-05,2]
[348072737,1736293834517,-500.0,9.276e-05,2]
[348072738,1736293834529,-500.0,9.276e-05,2]
[348072739,1736293834539,-500.0,9.276e-05,2]
[348072740,1736293834549,-500.0,9.276e-05,2]
[348072741,1736293834558,-500.0,9.276e-05,2]
[348072742,1736293834568,-530.3,9.276e-05,2]
[348072743,1736293834577,-500.0,9.276e-05,2]
[348072744,1736293834587,-500.0,9.276e-05,2]
[348072745,1736293834597,-500.0,9.276e-05,2]
[348072746,1736293834606,-500.0,9.276e-05,2]
[348072747,1736293834615,-500.0,9.276e-05,2]
[348072748,1736293834625,-500.0,9.276e-05,2]
[348072749,1736293834634,-500.0,9.276e-05,2]
[348072750,1736293834643,-500.0,9.276e-05,2]
[348072751,1736293834654,-500.0,9.276e-05,2]
[348072752,1736293834664,-597.1,9.276e-05,2]
[348072753,1736293834673,-500.0,9.276e-05,2]
[348072754,1736293834683,-500.0,9.276e-05,2]
[348072755,1736293834692,-607.43,9.276e-05,2]
[348072756,1736293834702,-500.0,9.276e-05,2]
[348072757,1736293834711,-500.0,9.276e-05,2]
[348072758,1736293834721,-500.0,9.276e-05,2]
[348072759,1736293834730,-500.0,9.276e-05,2]
[348072760,1736293834739,-500.0,9.276e-05,2]
[348072761,1736293834748,-500.0,9.276e-05,2]
[348072762,1736293834758,-500.0,9.276e-05,2]
[348072763,1736293834767,-500.0,9.276e-05,2]
[348072764,1736293834777,-500.0,9.276e-05,2]
[348072765,1736293834786,-500.0,9.276e-05,2]
[348072766,1736293834795,-500.0,9.276e-05,2]
[348072767,1736293834805,-500.0,9.276e-05,2]
[348072768,1736293834814,-500.0,9.276e-05,2]
[348072769,1736293834823,-500.0,9.276e-05,2]
[348072770,1736293834832,-500.0,9.276e-05,2]
[348072771,1736293834841,-500.0,9.276e-05,2]
[348072772,1736293834851,-500.0,9.276e-05,2]
[348072773,1736293834860,-500.0,9.276e-05,2]
[348072774,1736293834870,-500.0,9.276e-05,2]
[348072775,1736293834879,-500.0,9.276e-05,2]